fUST/lending_fUST_20250627
["ID","MTS","AMOUNT","RATE_DAILY","PERIOD"]
[368042616,1751004641468,-460.0,0.0002,2]
[368042617,1751004641477,-460.0,0.0002,2]
[368042618,1751004641487,-460.0,0.0002,2]
[368042619,1751004641497,-460.0,0.0002,2]
[368042620,1751004641507,-460.0,0.0002,2]
[368042621,1751004641517,-760.18,0.0002,2]
[368042622,1751004641527,-460.0,0.0002,2]
[368042623,1751004641537,-460.0,0.0002,2]
[368042624,1751004641546,-460.0,0.0002,2]
[368042625,1751004641558,-219.85418213,0.0002,2]
[368042626,1751004641568,-460.0,0.0002,2]
[368042627,1751004641578,-460.0,0.0002,2]
[368042628,1751004641587,-460.0,0.0002,2]
[368042629,1751004641597,-460.0,0.0002,2]
[368042630,1751004641607,-460.0,0.0002,2]
[368042631,1751004641617,-4430.22,0.0002,2]
[368042632,1751004641627,-460.0,0.0002,2]
[368042633,1751004641637,-576.69,0.0002,2]
[368042634,1751004641646,-731.06,0.0002,2]
[368042635,1751004641656,-514.81,0.0002,2]
[368042636,1751004641666,-540.92,0.0002,2]
[368042637,1751004641676,-912.59,0.0002,2]
[368042638,1751004641685,-460.0,0.0002,2]
[368042639,1751004641695,-460.0,0.0002,2]
[368042640,1751004641706,-460.0,0.0002,2]
[368042641,1751004641716,-460.0,0.0002,2]
[368042642,1751004641725,-2174.38,0.0002,2]
[368042643,1751004641734,-460.0,0.0002,2]
[368042644,1751004641744,-460.0,0.0002,2]
[368042645,1751004641754,-1325.15,0.0002,2]
[368042646,1751004641763,-1048.3,0.0002,2]
[368042647,1751004641773,-1971.65,0.0002,2]
[368042648,1751004641782,-460.0,0.0002,2]
[368042649,1751004641791,-839.87,0.0002,2]
[368042650,1751004641801,-460.0,0.0002,2]
[368042651,1751004641811,-660.88,0.0002,2]
[368042652,1751004641821,-720.56,0.0002,2]
[368042653,1751004641831,-709.07,0.0002,2]
[368042654,1751004641841,-2368.79,0.0002,2]
[368042655,1751004641851,-460.0,0.0002,2]
[368042656,1751004641861,-662.93,0.0002,2]
[368042657,1751004641870,-523.8,0.0002,2]
[368042658,1751004641880,-460.0,0.0002,2]
[368042659,1751004641890,-460.0,0.0002,2]
[368042660,1751004641900,-460.0,0.0002,2]
[368042661,1751004641910,-460.0,0.0002,2]
[368042662,1751004641919,-460.0,0.0002,2]
[368042663,1751004641929,-5531.9,0.0002,2]
[368042664,1751004641938,-460.0,0.0002,2]
[368042665,1751004641948,-492.17239588,0.0002,2]
[368042666,1751004641958,-2086.12,0.0002,2]
[368042667,1751004641968,-2531.54,0.0002,2]
[368042668,1751004641978,-761.22,0.0002,2]
[368042669,1751004641987,-460.0,0.0002,2]
[368042670,1751004641996,-460.0,0.0002,2]
[368042671,1751004642006,-646.32,0.0002,2]
[368042672,1751004642016,-2045.81,0.0002,2]
[368042673,1751004642026,-1369.73,0.0002,2]
[368042674,1751004642036,-460.0,0.0002,2]
[368042675,1751004642046,-460.0,0.0002,2]
[368042676,1751004642056,-460.0,0.0002,2]
[368042677,1751004642065,-665.99,0.0002,2]
[368042678,1751004642076,-532.58,0.0002,2]
[368042679,1751004642086,-639.03,0.0002,2]
[368042680,1751004642096,-460.0,0.0002,2]
[368042681,1751004642106,-1649.52,0.0002,2]
[368042682,1751004642117,-2197.67,0.0002,2]
[368042683,1751004642127,-1466.27,0.0002,2]
[368042684,1751004642137,-965.99,0.0002,2]
[368042685,1751004642147,-460.0,0.0002,2]
[368042686,1751004642156,-460.0,0.0002,2]
[368042687,1751004642166,-1009.49,0.0002,2]
[368042688,1751004642177,-491.00737563,0.0002,2]
[368042689,1751004642186,-1420.25,0.0002,2]
[368042690,1751004642197,-460.0,0.0002,2]
[368042691,1751004642208,-796.28,0.0002,2]
[368042692,1751004642218,-460.0,0.0002,2]
[368042693,1751004642227,-213.53654037,0.0002,2]
[368042694,1751004642237,-539.01021643,0.00020024,2]
[368042695,1751004642247,-500.0,0.00020085,2]
[368042696,1751004642257,-500.0,0.00020085,2]
[368042697,1751004642268,-500.0,0.00020085,2]
[368042698,1751004642278,-500.36063158,0.00020085,2]
[368042699,1751004642287,-500.0,0.00020085,2]
[368042700,1751004642297,-500.0,0.00020086,2]
[368042701,1751004642307,-501.01939852,0.00020224,2]
[368042702,1751004642318,-500.0,0.00020224,2]
[368042703,1751004642328,-500.0,0.00020224,2]
[368042704,1751004642338,-500.0,0.00020224,2]
[368042705,1751004642347,-500.75103326,0.00020224,2]
[368042706,1751004642357,-501.04307256,0.00020224,2]
[368042707,1751004642367,-500.54053299,0.00020224,2]
[368042708,1751004642377,-230.26210603,0.00020234,2]
[368042709,1751004642386,-213.75309343,0.00020234,2]
[368042710,1751004642396,-160.0,0.00020234,2]
[368042711,1751004642407,-160.0,0.00020234,2]
[368042712,1751004642417,-847.04181546,0.00020234,2]
[368042713,1751004642426,-12562.41216491,0.00020234,2]
[368042714,1751004642436,-836.98798914,0.00020234,2]
[368042715,1751004642446,-214.91804724,0.00020234,2]
[368042716,1751004642456,-160.0,0.00020234,2]
[368042717,1751004642466,-160.0,0.0002025,2]
[368042718,1751004642476,-155.0,0.00020262,2]
[368042719,1751004642494,-460.0,0.00020273,2]
[368042720,1751004642506,-492.85,0.00020273,2]
[368042721,1751004642516,-460.0,0.00020273,2]
[368042722,1751004642525,-514.68,0.00020273,2]
[368042723,1751004642535,-460.0,0.00020273,2]
[368042724,1751004642545,-460.0,0.00020273,2]
[368042725,1751004642555,-436.18,0.00020273,2]
[368042726,1751004642564,-460.0,0.00020273,2]
[368042727,1751004642574,-460.0,0.00020273,2]
[368042728,1751004642584,-460.0,0.00020273,2]
[368042729,1751004642594,-760.18,0.00020273,2]
[368042730,1751004642604,-460.0,0.00020273,2]
[368042731,1751004642614,-460.0,0.00020273,2]
[368042732,1751004642624,-460.0,0.00020273,2]
[368042733,1751004642633,-460.0,0.00020273,2]
[368042734,1751004642642,-460.0,0.00020273,2]
[368042735,1751004642652,-460.0,0.00020273,2]
[368042736,1751004642662,-460.0,0.00020273,2]
[368042737,1751004642671,-453.42,0.00020273,2]
[368042738,1751004642681,-4430.22,0.00020273,2]
[368042739,1751004642691,-460.0,0.00020273,2]
[368042740,1751004642700,-576.69,0.00020273,2]
[368042741,1751004642710,-731.06,0.00020273,2]
[368042742,1751004642720,-514.81,0.00020273,2]
[368042743,1751004642729,-540.92,0.00020273,2]
[368042744,1751004642739,-912.59,0.00020273,2]
[368042745,1751004642749,-460.0,0.00020273,2]
[368042746,1751004642758,-460.0,0.00020273,2]
[368042747,1751004642768,-460.0,0.00020273,2]
[368042748,1751004642778,-460.0,0.00020273,2]
[368042749,1751004642787,-2174.38,0.00020273,2]
[368042750,1751004642797,-460.0,0.00020273,2]
[368042751,1751004642806,-460.0,0.00020273,2]
[368042752,1751004642816,-1325.15,0.00020273,2]
[368042753,1751004642827,-1048.3,0.00020273,2]
[368042754,1751004642836,-1971.65,0.00020273,2]
[368042755,1751004642847,-460.0,0.00020273,2]
[368042756,1751004642856,-839.87,0.00020273,2]
[368042757,1751004642865,-460.0,0.00020273,2]
[368042758,1751004642875,-660.88,0.00020273,2]
[368042759,1751004642885,-77.98028163,0.00020273,2]
[368042760,1751004642934,-642.57971837,0.00020273,2]
[368042761,1751004642944,-709.07,0.00020273,2]
[368042762,1751004642953,-1923.50735163,0.00020273,2]
[368042763,1751004642964,-445.28264837,0.00020273,2]
[368042764,1751004642974,-460.0,0.00020273,2]
[368042765,1751004642983,-128.72696195,0.00020273,2]
[368042766,1751004642995,-534.20303805,0.00020273,2]
[368042767,1751004643005,-523.8,0.00020273,2]
[368042769,1751004643015,-460.0,0.00020273,2]
[368042771,1751004643025,-460.0,0.00020273,2]
[368042773,1751004643035,-460.0,0.00020273,2]
[368042775,1751004643044,-460.0,0.00020273,2]
[368042777,1751004643054,-460.0,0.00020273,2]
[368042779,1751004643064,-2953.98209607,0.00020273,2]
[368042782,1751004643080,-2577.91790393,0.00020273,2]
[368042784,1751004643089,-460.0,0.00020273,2]
[368042786,1751004643099,-2086.12,0.00020273,2]
[368042788,1751004643109,-2531.54,0.00020273,2]
[368042790,1751004643118,-761.22,0.00020273,2]
[368042791,1751004643127,-460.0,0.00020273,2]
[368042793,1751004643137,-460.0,0.00020273,2]
[368042795,1751004643147,-646.32,0.00020273,2]
[368042796,1751004643157,-2045.81,0.00020273,2]
[368042797,1751004643167,-1369.73,0.00020273,2]
[368042798,1751004643176,-460.0,0.00020273,2]
[368042799,1751004643186,-460.0,0.00020273,2]
[368042800,1751004643198,-267.5,0.00020273,2]
[368042801,1751004643209,-460.0,0.00020273,2]
[368042802,1751004643219,-665.99,0.00020273,2]
[368042803,1751004643229,-532.58,0.00020273,2]
[368042804,1751004643238,-639.03,0.00020273,2]
[368042805,1751004643248,-1649.52,0.00020273,2]
[368042806,1751004643258,-2197.67,0.00020273,2]
[368042807,1751004643268,-1466.27,0.00020273,2]
[368042808,1751004643279,-965.99,0.00020273,2]
[368042810,1751004643289,-460.0,0.00020273,2]
[368042812,1751004643299,-460.0,0.00020273,2]
[368042814,1751004643308,-1009.49,0.00020273,2]
[368042816,1751004643318,-1420.25,0.00020273,2]
[368042818,1751004643327,-460.0,0.00020273,2]
[368042820,1751004643336,-796.28,0.00020273,2]
[368042821,1751004643346,-460.0,0.00020273,2]
[368042823,1751004643356,-1000.0,0.00020435,2]
[368042825,1751004643366,-500.0,0.0002045,2]
[368042826,1751004643376,-500.77727154,0.0002045,2]
[368042827,1751004643385,-500.81995879,0.0002045,2]
[368042828,1751004643395,-460.0,0.00020547,2]
[368042829,1751004643404,-492.85,0.00020547,2]
[368042830,1751004643414,-460.0,0.00020547,2]
[368042831,1751004643424,-514.68,0.00020547,2]
[368042832,1751004643433,-501.09,0.00020547,2]
[368042833,1751004643442,-460.0,0.00020547,2]
[368042834,1751004643452,-460.0,0.00020547,2]
[368042835,1751004643461,-255.0,0.00020547,2]
[368042836,1751004643471,-760.18,0.00020547,2]
[368042837,1751004643481,-460.0,0.00020547,2]
[368042838,1751004643490,-460.0,0.00020547,2]
[368042839,1751004643501,-460.0,0.00020547,2]
[368042840,1751004643511,-460.0,0.00020547,2]
[368042841,1751004643520,-280.76,0.00020547,2]
[368042842,1751004643530,-460.0,0.00020547,2]
[368042843,1751004643540,-460.0,0.00020547,2]
[368042845,1751004643552,-4430.22,0.00020547,2]
[368042847,1751004643562,-460.0,0.00020547,2]
[368042848,1751004643572,-576.69,0.00020547,2]
[368042849,1751004643581,-731.06,0.00020547,2]
[368042850,1751004643592,-514.81,0.00020547,2]
[368042851,1751004643601,-540.92,0.00020547,2]
[368042852,1751004643611,-912.59,0.00020547,2]
[368042853,1751004643620,-460.0,0.00020547,2]
[368042854,1751004643630,-460.0,0.00020547,2]
[368042855,1751004643639,-460.0,0.00020547,2]
[368042856,1751004643649,-2174.38,0.00020547,2]
[368042857,1751004643659,-460.0,0.00020547,2]
[368042858,1751004643669,-460.0,0.00020547,2]
[368042859,1751004643678,-1325.15,0.00020547,2]
[368042860,1751004643688,-1048.3,0.00020547,2]
[368042861,1751004643698,-1971.65,0.00020547,2]
[368042862,1751004643707,-460.0,0.00020547,2]
[368042863,1751004643716,-839.87,0.00020547,2]
[368042864,1751004643726,-460.0,0.00020547,2]
[368042865,1751004643735,-660.88,0.00020547,2]
[368042866,1751004643744,-720.56,0.00020547,2]
[368042867,1751004643756,-709.07,0.00020547,2]
[368042868,1751004643766,-2368.79,0.00020547,2]
[368042869,1751004643775,-460.0,0.00020547,2]
[368042870,1751004643784,-662.93,0.00020547,2]
[368042871,1751004643793,-523.8,0.00020547,2]
[368042872,1751004643802,-460.0,0.00020547,2]
[368042873,1751004643812,-460.0,0.00020547,2]
[368042874,1751004643821,-460.0,0.00020547,2]
[368042875,1751004643830,-460.0,0.00020547,2]
[368042876,1751004643840,-460.0,0.00020547,2]
[368042877,1751004643849,-5531.9,0.00020547,2]
[368042878,1751004643859,-460.0,0.00020547,2]
[368042879,1751004643868,-2086.12,0.00020547,2]
[368042880,1751004643879,-2531.54,0.00020547,2]
[368042881,1751004644054,-761.22,0.00020547,2]
[368042882,1751004644064,-460.0,0.00020547,2]
[368042883,1751004644074,-438.56714566,0.00020547,2]
[368042884,1751004644083,-646.32,0.00020547,2]
[368042885,1751004644092,-2045.81,0.00020547,2]
[368042886,1751004644102,-1369.73,0.00020547,2]
[368042887,1751004644111,-460.0,0.00020547,2]
[368042888,1751004644121,-460.0,0.00020547,2]
[368042889,1751004644130,-460.0,0.00020547,2]
[368042890,1751004644140,-665.99,0.00020547,2]
[368042891,1751004644149,-532.58,0.00020547,2]
[368042892,1751004644159,-639.03,0.00020547,2]
[368042893,1751004644169,-1649.52,0.00020547,2]
[368042894,1751004644178,-2197.67,0.00020547,2]
[368042895,1751004644188,-1466.27,0.00020547,2]
[368042896,1751004644199,-965.99,0.00020547,2]
[368042897,1751004644209,-460.0,0.00020547,2]
[368042898,1751004644219,-417.92041718,0.00020547,2]
[368042899,1751004644229,-1009.49,0.00020547,2]
[368042900,1751004644238,-1420.25,0.00020547,2]
[368042901,1751004644248,-796.28,0.00020547,2]
[368042902,1751004644258,-560.23079012,0.00020547,2]
[368042903,1751004644267,-5078.68,0.000206,2]
[368042904,1751004644276,-453.69017575,0.00020633,2]
[368042905,1751004644287,-915.98698732,0.00020633,2]
[368042906,1751004644296,-500.0,0.00020633,2]
[368042907,1751004644306,-151.0,0.000207,3]
[368042908,1751004644316,-300.56217115,0.00020703,2]
[368042909,1751004644325,-460.0,0.00020821,2]
[368042910,1751004644334,-492.85,0.00020821,2]
[368042911,1751004644344,-460.0,0.00020821,2]
[368042912,1751004644354,-514.68,0.00020821,2]
[368042913,1751004644367,-460.0,0.00020821,2]
[368042914,1751004644376,-460.0,0.00020821,2]
[368042915,1751004644386,-760.18,0.00020821,2]
[368042916,1751004644398,-460.0,0.00020821,2]
[368042917,1751004644409,-460.0,0.00020821,2]
[368042918,1751004644419,-460.0,0.00020821,2]
[368042919,1751004644429,-460.0,0.00020821,2]
[368042920,1751004644438,-460.0,0.00020821,2]
[368042921,1751004644448,-460.0,0.00020821,2]
[368042922,1751004644460,-4430.22,0.00020821,2]
[368042923,1751004644470,-460.0,0.00020821,2]
[368042924,1751004644479,-576.69,0.00020821,2]
[368042925,1751004644489,-731.06,0.00020821,2]
[368042926,1751004644498,-514.81,0.00020821,2]
[368042927,1751004644507,-540.92,0.00020821,2]
[368042928,1751004644517,-912.59,0.00020821,2]
[368042929,1751004644527,-460.0,0.00020821,2]
[368042930,1751004644536,-460.0,0.00020821,2]
[368042931,1751004644545,-460.0,0.00020821,2]
[368042932,1751004644556,-2174.38,0.00020821,2]
[368042933,1751004644566,-460.0,0.00020821,2]
[368042934,1751004644575,-460.0,0.00020821,2]
[368042935,1751004644584,-1325.15,0.00020821,2]
[368042936,1751004644593,-1971.65,0.00020821,2]
[368042937,1751004644603,-1048.3,0.00020821,2]
[368042938,1751004644612,-460.0,0.00020821,2]
[368042939,1751004644621,-839.87,0.00020821,2]
[368042940,1751004644630,-460.0,0.00020821,2]
[368042941,1751004644640,-660.88,0.00020821,2]
[368042942,1751004644650,-720.56,0.00020821,2]
[368042943,1751004644659,-709.07,0.00020821,2]
[368042944,1751004644668,-2368.79,0.00020821,2]
[368042945,1751004644677,-662.93,0.00020821,2]
[368042946,1751004644687,-460.0,0.00020821,2]
[368042947,1751004644696,-523.8,0.00020821,2]
[368042948,1751004644706,-460.0,0.00020821,2]
[368042949,1751004644716,-460.0,0.00020821,2]
[368042950,1751004644726,-460.0,0.00020821,2]
[368042951,1751004644735,-460.0,0.00020821,2]
[368042952,1751004644745,-460.0,0.00020821,2]
[368042953,1751004644754,-5531.9,0.00020821,2]
[368042954,1751004644763,-460.0,0.00020821,2]
[368042955,1751004644773,-2086.12,0.00020821,2]
[368042956,1751004644782,-2531.54,0.00020821,2]
[368042957,1751004644792,-761.22,0.00020821,2]
[368042958,1751004644802,-460.0,0.00020821,2]
[368042959,1751004644811,-646.32,0.00020821,2]
[368042960,1751004644821,-2045.81,0.00020821,2]
[368042961,1751004644831,-1369.73,0.00020821,2]
[368042962,1751004644840,-353.33,0.00020821,2]
[368042963,1751004644850,-460.0,0.00020821,2]
[368042964,1751004644859,-665.99,0.00020821,2]
[368042965,1751004644868,-532.58,0.00020821,2]
[368042966,1751004644878,-639.03,0.00020821,2]
[368042967,1751004644887,-1649.52,0.00020821,2]
[368042968,1751004644897,-2197.67,0.00020821,2]
[368042969,1751004644906,-1466.27,0.00020821,2]
[368042970,1751004644915,-965.99,0.00020821,2]
[368042971,1751004644924,-460.0,0.00020821,2]
[368042972,1751004644934,-1009.49,0.00020821,2]
[368042973,1751004644943,-1420.25,0.00020821,2]
[368042974,1751004644952,-796.28,0.00020821,2]
[368042975,1751004644961,-207.4,0.00020898,2]
[368042976,1751004644971,-151.0,0.00020898,2]
[368042977,1751004644980,-5000.0,0.00020898,2]
[368042978,1751004644989,-230.64363875,0.00020898,2]
[368042979,1751004644998,-200.0,0.00020898,2]
[368042980,1751004645008,-151.0,0.00020898,2]
[368042981,1751004645017,-300.0,0.00020898,2]
[368042982,1751004645027,-666.0,0.00020898,2]
[368042983,1751004645036,-151.0,0.00020898,2]
[368042984,1751004645046,-151.0,0.00020898,2]
[368042985,1751004645055,-151.0,0.00020898,2]
[368042986,1751004645064,-151.0,0.00020898,2]
[368042987,1751004645074,-500.0,0.00020898,2]
[368042988,1751004645085,-500.0,0.00020898,2]
[368042989,1751004645094,-151.0,0.00020898,2]
[368042990,1751004645103,-500.0,0.00020898,2]
[368042991,1751004645113,-151.0,0.00020898,2]
[368042992,1751004645123,-575.21477399,0.00020898,2]
[368042993,1751004645132,-151.0,0.00020898,2]
[368042994,1751004645141,-151.0,0.00020898,2]
[368042995,1751004645151,-151.0,0.00020898,2]
[368042996,1751004645164,-246.62150823,0.00020898,2]
[368042997,1751004645177,-25000.0,0.00020898,2]
[368042998,1751004645186,-420.0,0.00020899,2]
[368042999,1751004645196,-7708.7234377,0.000209,4]
[368043000,1751004645206,-690.642,0.00020953,2]
[368043001,1751004645215,-539.01021643,0.0002097,2]
[368043002,1751004645224,-1500.0,0.00020983,2]
[368043003,1751004645234,-151.0,0.00021,3]
[368043004,1751004645244,-716.195754,0.00021008,2]
[368043005,1751004645255,-742.6949969,0.00021063,2]
[368043006,1751004645264,-7708.72343765,0.00021072,4]
[368043007,1751004645275,-564.0,0.00021084,2]
[368043008,1751004645286,-460.0,0.00021095,2]
[368043009,1751004645295,-492.85,0.00021095,2]
[368043010,1751004645304,-460.0,0.00021095,2]
[368043011,1751004645314,-514.68,0.00021095,2]
[368043012,1751004645323,-460.0,0.00021095,2]
[368043013,1751004645333,-460.0,0.00021095,2]
[368043014,1751004645343,-760.18,0.00021095,2]
[368043015,1751004645353,-460.0,0.00021095,2]
[368043016,1751004645362,-460.0,0.00021095,2]
[368043017,1751004645371,-460.0,0.00021095,2]
[368043018,1751004645381,-460.0,0.00021095,2]
[368043019,1751004645390,-460.0,0.00021095,2]
[368043020,1751004645399,-460.0,0.00021095,2]
[368043021,1751004645409,-4430.22,0.00021095,2]
[368043022,1751004645418,-494.03096328,0.00021095,2]
[368043023,1751004645427,-576.69,0.00021095,2]
[368043024,1751004645436,-731.06,0.00021095,2]
[368043025,1751004645446,-514.81,0.00021095,2]
[368043026,1751004645455,-540.92,0.00021095,2]
[368043027,1751004645465,-912.59,0.00021095,2]
[368043028,1751004645474,-460.0,0.00021095,2]
[368043029,1751004645483,-460.0,0.00021095,2]
[368043030,1751004645492,-2174.38,0.00021095,2]
[368043031,1751004645503,-460.0,0.00021095,2]
[368043032,1751004645513,-156.99534255,0.00021095,2]
[368043033,1751004645522,-1325.15,0.00021095,2]
[368043034,1751004645531,-1971.65,0.00021095,2]
[368043035,1751004645540,-1048.3,0.00021095,2]
[368043036,1751004645550,-460.0,0.00021095,2]
[368043037,1751004645559,-839.87,0.00021095,2]
[368043038,1751004645569,-460.0,0.00021095,2]
[368043039,1751004645578,-660.88,0.00021095,2]
[368043040,1751004645587,-720.56,0.00021095,2]
[368043041,1751004645596,-709.07,0.00021095,2]
[368043042,1751004645605,-2368.79,0.00021095,2]
[368043043,1751004645614,-460.0,0.00021095,2]
[368043044,1751004645624,-662.93,0.00021095,2]
[368043045,1751004645633,-523.8,0.00021095,2]
[368043046,1751004645642,-460.0,0.00021095,2]
[368043047,1751004645651,-460.0,0.00021095,2]
[368043048,1751004645661,-460.0,0.00021095,2]
[368043049,1751004645670,-460.0,0.00021095,2]
[368043050,1751004645679,-460.0,0.00021095,2]
[368043051,1751004645688,-5531.9,0.00021095,2]
[368043052,1751004645698,-460.0,0.00021095,2]
[368043053,1751004645707,-2086.12,0.00021095,2]
[368043054,1751004645716,-761.22,0.00021095,2]
[368043055,1751004645726,-2531.54,0.00021095,2]
[368043056,1751004645735,-460.0,0.00021095,2]
[368043057,1751004645744,-646.32,0.00021095,2]
[368043058,1751004645754,-2045.81,0.00021095,2]
[368043059,1751004645763,-1369.73,0.00021095,2]
[368043060,1751004645772,-460.0,0.00021095,2]
[368043061,1751004645782,-665.99,0.00021095,2]
[368043062,1751004645791,-532.58,0.00021095,2]
[368043064,1751004645800,-639.03,0.00021095,2]
[368043065,1751004645811,-1649.52,0.00021095,2]
[368043066,1751004645822,-2197.67,0.00021095,2]
[368043067,1751004645831,-1466.27,0.00021095,2]
[368043068,1751004645840,-965.99,0.00021095,2]
[368043069,1751004645850,-460.0,0.00021095,2]
[368043070,1751004645859,-1009.49,0.00021095,2]
[368043071,1751004645869,-1420.25,0.00021095,2]
[368043072,1751004645878,-796.28,0.00021095,2]
[368043073,1751004645887,-622.9232491,0.00021118,2]
[368043074,1751004645896,-1030.163,0.00021145,2]
[368043075,1751004645905,-177.888,0.00021145,2]
[368043076,1751004645915,-366.1147399,0.00021178,2]
[368043077,1751004645924,-366.1147399,0.00021178,2]
[368043078,1751004645934,-151.0,0.000212,3]
[368043079,1751004645944,-7708.72343765,0.00021245,4]
[368043080,1751004645953,-893.02044701,0.00021332,2]
[368043081,1751004645963,-460.0,0.00021369,2]
[368043082,1751004645972,-492.85,0.00021369,2]
[368043083,1751004645982,-341.67523712,0.00021369,2]
[368043084,1751004645992,-514.68,0.00021369,2]
[368043085,1751004646003,-166.26300011,0.00021369,2]
[368043086,1751004646013,-460.0,0.00021369,2]
[368043087,1751004646022,-760.18,0.00021369,2]
[368043088,1751004646032,-460.0,0.00021369,2]
[368043089,1751004646041,-460.0,0.00021369,2]
[368043090,1751004646052,-460.0,0.00021369,2]
[368043091,1751004646061,-460.0,0.00021369,2]
[368043092,1751004646071,-460.0,0.00021369,2]
[368043093,1751004646081,-460.0,0.00021369,2]
[368043094,1751004646091,-4430.22,0.00021369,2]
[368043095,1751004646101,-576.69,0.00021369,2]
[368043096,1751004646112,-731.06,0.00021369,2]
[368043097,1751004646122,-514.81,0.00021369,2]
[368043098,1751004646131,-540.92,0.00021369,2]
[368043099,1751004646141,-912.59,0.00021369,2]
[368043100,1751004646150,-460.0,0.00021369,2]
[368043101,1751004646159,-460.0,0.00021369,2]
[368043102,1751004646169,-2174.38,0.00021369,2]
[368043103,1751004646178,-460.0,0.00021369,2]
[368043104,1751004646188,-1325.15,0.00021369,2]
[368043105,1751004646202,-1971.65,0.00021369,2]
[368043106,1751004646211,-1048.3,0.00021369,2]
[368043107,1751004646221,-226.2393405,0.00021369,2]
[368043108,1751004646230,-839.87,0.00021369,2]
[368043110,1751004646240,-460.0,0.00021369,2]
[368043112,1751004646250,-660.88,0.00021369,2]
[368043114,1751004646260,-720.56,0.00021369,2]
[368043116,1751004646271,-709.07,0.00021369,2]
[368043118,1751004646280,-2368.79,0.00021369,2]
[368043120,1751004646291,-460.0,0.00021369,2]
[368043122,1751004646300,-662.93,0.00021369,2]
[368043124,1751004646309,-523.8,0.00021369,2]
[368043127,1751004646318,-460.0,0.00021369,2]
[368043128,1751004646328,-460.0,0.00021369,2]
[368043130,1751004646337,-460.0,0.00021369,2]
[368043132,1751004646346,-460.0,0.00021369,2]
[368043134,1751004646355,-460.0,0.00021369,2]
[368043136,1751004646365,-5531.9,0.00021369,2]
[368043138,1751004646374,-460.0,0.00021369,2]
[368043140,1751004646383,-2086.12,0.00021369,2]
[368043142,1751004646393,-761.22,0.00021369,2]
[368043144,1751004646402,-2531.54,0.00021369,2]
[368043146,1751004646412,-460.0,0.00021369,2]
[368043148,1751004646421,-646.32,0.00021369,2]
[368043149,1751004646430,-2045.81,0.00021369,2]
[368043151,1751004646439,-1369.73,0.00021369,2]
[368043153,1751004646448,-460.0,0.00021369,2]
[368043155,1751004646457,-665.99,0.00021369,2]
[368043157,1751004646467,-532.58,0.00021369,2]
[368043159,1751004646477,-639.03,0.00021369,2]
[368043161,1751004646486,-1649.52,0.00021369,2]
[368043163,1751004646495,-2197.67,0.00021369,2]
[368043165,1751004646505,-1466.27,0.00021369,2]
[368043167,1751004646514,-965.99,0.00021369,2]
[368043169,1751004646524,-460.0,0.00021369,2]
[368043171,1751004646533,-1009.49,0.00021369,2]